Cogmind - Beta 14 @@@ ROGUE MODE // 2024.12.14 @ 18:47:51 Player: kitty Result: Destroyed by as-97352 with Assembled Maul Performance ------------- Evolutions (1) 500 Regions Visited (4) 800 Robots Destroyed (24) 120 Value Destroyed (753) 753 Prototype IDs (2) 40 Alien Tech Used (0) 0 Bonus (0) 0 TOTAL SCORE: 2213 Bonus ------- None Cogmind --------- Core Integrity 0/400 Matter 255/300 Energy 265/265 System Corruption 5% Temperature Cool (0) Movement Walking (120) Location -9/Mines Parts ------- > --- POWER (2) -------- Improved Ion Engine > --- PROPULSION (3) --- Aluminum Leg Carbon-fiber Leg Carbon-fiber Leg > --- UTILITY (2) ------ Small Storage Unit > --- WEAPON (2) ------- Improved Light Cannon Makeshift Spear > --- INVENTORY (8) ---- Aluminum Leg Aluminum Leg Titanium Leg Titanium Leg Titanium Leg Titanium Leg Datajack Peak State ------------ > --- POWER ------------ Light Ion Engine Improved Ion Engine > --- PROPULSION ------- Aluminum Leg Carbon-fiber Leg Carbon-fiber Leg > --- UTILITY ---------- Small Storage Unit Reflective Plating > --- WEAPON ----------- Improved Light Cannon Makeshift Spear > --- INVENTORY -------- Aluminum Leg Aluminum Leg Titanium Leg Titanium Leg Titanium Leg Titanium Leg Datajack [Rating: 21] Favorites ----------- Power Light Ion Engine Engine Light Ion Engine Propulsion Aluminum Leg Treads Light Treads Leg Aluminum Leg Wheel Wheel Utility Small Storage Unit Device Improved Heat Sink Storage Small Storage Unit Protection Reflective Plating Weapon Assault Rifle Energy Gun Small Laser Ballistic Gun Assault Rifle Ballistic Cannon Improved Light Cannon Piercing Weapon Makeshift Spear Build | -11 -10 -10 -9 -9 ------- Run | Yrd Mat Min Mat Min Slots Evolved 2 | . . . 2 . Power 1 | . . . 1 . Propulsion 1 | . . . 1 . Utility . | . . . . . Weapon . | . . . . . Parts Attached 44 | 6 9 1 26 2 Power 8 | 1 1 . 6 . Engine 8 | 1 1 . 6 . Core . | . . . . . Reactor . | . . . . . Propulsion 16 | 2 5 . 7 2 Treads 2 | 2 . . . . Leg 12 | . 3 . 7 2 Wheel 2 | . 2 . . . Hover . | . . . . . Flight . | . . . . . Utility 9 | 1 1 . 7 . Device 5 | . 1 . 4 . Storage 3 | 1 . . 2 . Processor . | . . . . . Hackware . | . . . . . Protection 1 | . . . 1 . Artifact . | . . . . . Weapon 11 | 2 2 1 6 . Energy Gun 3 | . . 1 2 . Energy Cannon . | . . . . . Ballistic Gun 5 | 2 2 . 1 . Ballistic Cannon 1 | . . . 1 . Launcher . | . . . . . Special Weapon . | . . . . . Impact Weapon . | . . . . . Slashing Weapon . | . . . . . Piercing Weapon 2 | . . . 2 . Special Melee Weapon . | . . . . . Unidentified Prototypes . | . . . . . Parts Lost 19 | . 7 1 8 3 Power 5 | . 1 . 3 1 Propulsion 7 | . 3 . 3 1 Utility 3 | . . 1 1 1 Weapon 4 | . 3 . 1 . Highest Loss Streak 6 | . 5 1 6 3 To Critical Strikes . | . . . . . Average Slot Usage (%) 92 | . 88 83 96 96 Engine 17 | . 13 14 20 20 Treads 2 | . 8 . . . Leg 24 | . 14 . 32 33 Wheel 3 | . 3 28 . . Device 8 | . 8 6 8 . Storage 12 | . 14 14 11 11 Energy Gun 2 | . . 6 2 . Ballistic Gun 13 | . 24 14 8 . Piercing Weapon 5 | . . . 9 11 Peak Build Rating 21 | 6 7 7 18 21 Average Rating 10 | 5 6 6 14 17 On Entrance 7 | . 6 6 7 18 Naked Turns . | . . . . . Heaviest Build 40 | 12 13 13 40 25 Greatest Support 40 | 40 40 26 30 40 Greatest Overweight (x) 4 | . 4 . 1 1 Average Overweight (x) . | . . . . . Largest Inventory Capacity 15 | 8 8 8 15 8 Average Capacity 8 | 7 8 8 8 8 Most Carried 8 | 6 8 8 8 8 Average Carried 7 | 5 6 7 7 7 Final Capacity 8 | 8 8 8 8 8 Final Carried 8 | 6 8 8 8 7 Class Distribution -------------------- 50% | Scavenger-Mutant 49% | Mutant Dominant Class ---------------- Mutant | -10/Materials Mutant | -10/Mines Scavenger-Mutant | -9/Materials Scavenger-Mutant | -9/Mines Resources | -11 -10 -10 -9 -9 ----------- Run | Yrd Mat Min Mat Min Matter Collected 650 | 255 116 42 237 . Remotely 30 | . . . 30 . Salvage Created 904 | . 252 41 611 . Parts 61 | . 20 3 38 . Haulers Intercepted . | . . . . . Recyclers Shooed . | . . . . . Parts Field Recycled . | . . . . . Retrieved Matter . | . . . . . Parts Self-Destructed . | . . . . . Prevented . | . . . . . Kills | -11 -10 -10 -9 -9 ------- Run | Yrd Mat Min Mat Min Combat Hostiles Destroyed 24 | . 10 1 13 . Melee 7 | . . . 7 . Guns 17 | . 10 1 6 . Classes Destroyed 3 | . 2 . 1 . Swarmer 6 | . 6 . . . Grunt 13 | . 4 1 8 . Sentry 5 | . . . 5 . Best Kill Streak 5 | . 3 1 5 . Combat Bots Only 5 | . 3 1 5 . Max Kills in Single Turn 1 | . 1 1 1 . Gunslinging . | . . . . . Exploded . | . . . . . Melee 1 | . . . 1 . Uniques/NPCs Destroyed . | . . . . . Combat | -11 -10 -10 -9 -9 -------- Run | Yrd Mat Min Mat Min Hostile Shots Fired 302 | . 119 2 110 71 Missed 86 | . 33 . 31 22 Damage Taken 2785 | . 944 23 1089 729 Core 594 | . 184 . 292 118 Absorbed by Shields . | . . . . . Ignored by Resistances 11 | . . . 2 9 Core Remaining (%) 63 | 100 . 26 . . Volleys Fired 67 | . 31 2 34 . Largest 2 | . 2 1 2 . Hottest 88 | . 40 20 88 . Shots Fired 96 | . 47 2 47 . Gun 96 | . 47 2 47 . Cannon . | . . . . . Launcher . | . . . . . Special . | . . . . . Kinetic 73 | . 47 2 24 . Thermal 23 | . . . 23 . Explosive . | . . . . . Electromagnetic . | . . . . . Robot Hit Streak 9 | . 7 2 9 . Robot Miss Streak 4 | . 4 . 2 . Penetration Max . | . . . . . Secondary Targets 5 | . 2 . 3 . Max Gunslinging Chain 1 | . 1 . 1 . Shots Hit Robots 69 | . 26 2 41 . Core Hits 41 | . 17 2 22 . Critical Kills . | . . . . . Critical Parts Destroyed . | . . . . . Critical Strikes . | . . . . . Melee Attacks 21 | . . . 21 . Impact . | . . . . . Slashing . | . . . . . Piercing 21 | . . . 21 . Sneak Attacks 1 | . . . 1 . Combat Hostiles 1 | . . . 1 . Follow-up Attacks . | . . . . . Damage Inflicted 1142 | . 333 15 794 . Guns 752 | . 318 15 419 . Cannons . | . . . . . Explosions . | . . . . . Melee 368 | . . . 368 . Ramming 22 | . 15 . 7 . Kinetic 533 | . 318 15 200 . Thermal 219 | . . . 219 . Explosive . | . . . . . Electromagnetic . | . . . . . Impact . | . . . . . Slashing . | . . . . . Piercing 368 | . . . 368 . Highest Corruption 5 | . 1 1 . 5 Average Corruption 1 | . 1 1 . 5 Corruption Purged . | . . . . . Corruption Blocked . | . . . . . Effects 5 | . 5 . . . Message Errors 1 | . 1 . . . Matter Fused 2 | . 2 . . . Data Loss (minor) 1 | . 1 . . . Misfires 1 | . 1 . . . Overload Shots . | . . . . . Overflow Damage . | . . . . . Projectiles . | . . . . . Explosions . | . . . . . Melee . | . . . . . Knockbacks . | . . . . . Impact . | . . . . . Kinetic . | . . . . . Secondary . | . . . . . Self-Inflicted Damage . | . . . . . Shots . | . . . . . Rammed . | . . . . . Targets Rammed 11 | . 10 . 1 . Kicked 11 | . 10 . 1 . Crushed . | . . . . . Highest Temperature 233 | . 29 6 233 23 Average Temperature 71 | . 7 6 88 12 Received Heat Transfer 968 | . 150 12 546 260 Effects 1 | . . . 1 . Energy Bleed 1 | . . . 1 . Siege Activations . | . . . . . Robots Corrupted . | . . . . . Combat Hostiles . | . . . . . Parts Fried . | . . . . . Impact Corruptions . | . . . . . Robots Melted . | . . . . . Combat Hostiles . | . . . . . Parts Melted 2 | . . . 2 . Heat Transferred 520 | . . . 520 . Parts Sabotaged . | . . . . . Parts Stolen . | . . . . . Parts Stripped . | . . . . . Power Chain Reactions . | . . . . . Alert | -11 -10 -10 -9 -9 ------- Run | Yrd Mat Min Mat Min Peak Influence 220 | . 220 25 185 40 Initial 40 | . . 15 9 40 Average 65 | . 106 20 70 33 Maximum Alert Level 1 | . 1 . . . Low Security (%) 89 | 100 61 100 100 100 Level 1 10 | . 38 . . . Level 2 . | . . . . . Level 3 . | . . . . . Level 4 . | . . . . . Level 5 . | . . . . . High Security . | . . . . . Max Security . | . . . . . Squads Dispatched 6 | . 3 . 3 . Investigation 4 | . 3 . 1 . Extermination . | . . . . . Reinforcement 2 | . . . 2 . Assault . | . . . . . Garrison . | . . . . . Intercept . | . . . . . Searches Triggered . | . . . . . Construction Impeded . | . . . . . Haulers Reinforced . | . . . . . Active Scanning Responses . | . . . . . Cargo Convoy Interrupts . | . . . . . Stealth | -11 -10 -10 -9 -9 --------- Run | Yrd Mat Min Mat Min Distress Signals 5 | . 3 . 1 1 Communications Jammed . | . . . . . Distress Signals . | . . . . . Times Spotted 62 | . 20 3 21 18 Peak Tracking Total 19 | . 5 3 7 19 Tactical Retreats 4 | . 2 . . 2 Traps | -11 -10 -10 -9 -9 ------- Run | Yrd Mat Min Mat Min Traps Triggered 1 | . 1 . . . Indirectly . | . . . . . Trap Hack Attempts . | . . . . . Triggered . | . . . . . Disarmed . | . . . . . Reprogrammed . | . . . . . Reused . | . . . . . Traps Extracted . | . . . . . Installed . | . . . . . Triggered . | . . . . . Machines | -11 -10 -10 -9 -9 ---------- Run | Yrd Mat Min Mat Min Machines Disabled . | . . . . . Max in Single Turn . | . . . . . Machines Repaired . | . . . . . Machines Dismantled . | . . . . . Machines Sabotaged . | . . . . . Overloaded Fab Kills . | . . . . . Hacking | -11 -10 -10 -9 -9 --------- Run | Yrd Mat Min Mat Min Machines Accessed 6 | . 4 . 2 . Terminals 5 | . 3 . 2 . Fabricators . | . . . . . Repair Stations . | . . . . . Recycling Units 1 | . 1 . . . Scanalyzers . | . . . . . Garrison Access . | . . . . . Total Hacks 19 | . 11 . 8 . Successful 8 | . 3 . 5 . Failed 11 | . 8 . 3 . Catastrophic 3 | . 3 . . . Database Lockouts . | . . . . . Manual 16 | . 10 . 6 . Terminals 16 | . 8 . 8 . Fabricators . | . . . . . Repair Stations . | . . . . . Recycling Units 3 | . 3 . . . Scanalyzers . | . . . . . Garrison Access . | . . . . . Terminal Hacks 7 | . 2 . 5 . Record 2 | . 1 . 1 . Prototype ID Bank 1 | . . . 1 . Terminal Index 1 | . . . 1 . Alert Level 1 | . . . 1 . Investigation Status 1 | . . . 1 . Zone Layout 1 | . 1 . . . Fabricator Hacks . | . . . . . Repair Station Hacks . | . . . . . Recycling Unit Hacks . | . . . . . Scanalyzer . | . . . . . Garrison Access Hacks . | . . . . . Unauthorized Hacks 1 | . 1 . . . Terminals . | . . . . . Fabricators . | . . . . . Repair Stations . | . . . . . Recycling Units 1 | . 1 . . . Tunnel 1 | . 1 . . . Scanalyzers . | . . . . . Garrison Access . | . . . . . Data Cores Recovered . | . . . . . Used . | . . . . . Hacking Detections 6 | . 4 . 2 . Full Trace Events 4 | . 3 . 1 . Feedback Events 1 | . 1 . . . Corruption 1 | . 1 . . . Feedback Blocked . | . . . . . Robot Schematics Acquired . | . . . . . Robots Built . | . . . . . Authchips . | . . . . . Time . | . . . . . Total Robot Build Rating . | . . . . . Part Schematics Acquired . | . . . . . Parts Built . | . . . . . Authchips . | . . . . . Time . | . . . . . Total Part Build Rating . | . . . . . Parts Repaired . | . . . . . Time . | . . . . . Parts Recycled . | . . . . . Recycled Matter . | . . . . . Retrieved Matter . | . . . . . Retrieved Components . | . . . . . Parts Scanalyzed . | . . . . . Part Schematics Acquired . | . . . . . Parts Damaged . | . . . . . Bothacking | -11 -10 -10 -9 -9 ------------ Run | Yrd Mat Min Mat Min Used RIF Installer . | . . . . . Robots Hacked . | . . . . . Non-combat . | . . . . . Combat . | . . . . . Robot Hacks Applied . | . . . . . Relay Couplers Released . | . . . . . Fabnet Peak Effective % . | . . . . . Robots Rewired . | . . . . . Allies Hacked . | . . . . . Hacks Repelled . | . . . . . Allies | -11 -10 -10 -9 -9 -------- Run | Yrd Mat Min Mat Min Total Allies 1 | . . 1 . . Largest Group 1 | . . 1 1 . Highest-Rated Group 31 | . . 31 31 . Highest-Rated Ally 31 | . . 31 31 . Total Orders . | . . . . . Ally Attacks 6 | . . . 6 . Total Damage 65 | . . . 65 . Kills 1 | . . . 1 . Allies Corrupted . | . . . . . Allies Melted . | . . . . . Intel | -11 -10 -10 -9 -9 ------- Run | Yrd Mat Min Mat Min Robot Analysis Total . | . . . . . Derelict Logs Recovered 2 | . . 2 . . Drone Launches . | . . . . . Drone Recoveries . | . . . . . Exploration | -11 -10 -10 -9 -9 ------------- Run | Yrd Mat Min Mat Min Turns Passed 2317 | 327 624 164 1141 61 Spaces Moved 878 | 114 193 165 359 47 Core 13 | 4 9 . . . Treads 201 | 110 91 . . . Legs 438 | . 32 . 359 47 Wheels 226 | . 61 165 . . Hover . | . . . . . Flight . | . . . . . Fastest Speed 50 | 50 90 90 120 120 Average Speed 122 | 156 133 90 120 122 Slowest Speed 250 | 160 250 90 190 190 Overloaded Moves . | . . . . . Propulsion Burnouts . | . . . . . Robots Hopped . | . . . . . Cave-ins Triggered . | . . . . . Exploration Rate (%) 28 | 9 37 43 32 23 Regions Visited 4 Branch Regions 2 Pre-discovered Areas 3 | . 1 2 . . Known Exits Taken . | . . . . . Unknown Exits Taken 4 | 1 1 1 1 . Scrap Searched 1 | . . 1 . . Spaces Dug . | . . . . . Terrain Destroyed . | . . . . . Melee . | . . . . . Projectile . | . . . . . AOE . | . . . . . Terrain Rammed . | . . . . . Walls Destroyed . | . . . . . Machines Disabled . | . . . . . Actions | -11 -10 -10 -9 -9 --------- Run | Yrd Mat Min Mat Min Total 1996 | 260 511 179 997 49 Wait 938 | 135 264 6 533 . Move 874 | 113 192 164 358 47 Hop . | . . . . . Pick Up 27 | 6 5 3 13 . Fast Attach 16 | 6 4 1 5 . Attach 10 | . 3 . 6 1 Detach . | . . . . . Swap 18 | . 2 . 15 1 Drop 14 | . . 3 11 . Fire 67 | . 31 2 34 . Melee 21 | . . . 21 . Ram . | . . . . . Kick 11 | . 10 . 1 . Crush . | . . . . . Escape Stasis . | . . . . . Rewire . | . . . . . Trap . | . . . . . Miscellaneous . | . . . . . Route ------- -11/Scrapyard -10/Materials -10/Mines (discovered 2 exits: *Mat x2) -9/Materials -9/Mines History --------- Turn | Location | Event 32 | -11/Scrapyard | Discovered new exit (range 13) 328 | -11/Scrapyard | Entered Materials 329 | -10/Materials | Build established: Mutant 838 | -10/Materials | Core integrity fell below 50% 883 | -10/Materials | Lost 5 parts (1p2n2w) 893 | -10/Materials | Discovered new exit (range 11) 952 | -10/Materials | Entered Mines 1030 | -10/Mines | Escorted by a lone wolf Derelict 1036 | -10/Mines | Learned location of Zion (-7) 1036 | -10/Mines | Discovered new exit (range 9) 1060 | -10/Mines | A weapon hastily lodged in a ceiling crevice suddenly fell to the ground 1090 | -10/Mines | Learned Materials stockpile data 1107 | -10/Mines | Discovered new exit (range 8) 1116 | -10/Mines | Entered Materials 1116 | -9/Materials | Accompanied by 1 ally 1116 | -9/Materials | Evolved 2 slots: Power x1, Propulsion x1 1407 | -9/Materials | Build established: Scavenger-Mutant 2054 | -9/Materials | Core integrity fell below 50% 2116 | -9/Materials | Lost 6 parts (1p3n1u1w) 2251 | -9/Materials | Discovered new exit (range 6) 2257 | -9/Materials | Entered Mines 2262 | -9/Mines | Assembled infested the area 2267 | -9/Mines | Assisted by a Guerilla fighting off Assembled 2305 | -9/Mines | Core integrity fell below 20% 2318 | -9/Mines | Destroyed by as-97352 with Assembled Maul Last Messages --------------- 02251_ EXIT=FOUND 02254_ K-01 Serf cleans the Machine. LOCATION=UNKNOWN GOAL=ESCAPE 02262_ ALERT: Infestation in the mines, dispatching Demolisher response squad. 02267_ A derelict emerges from the shadows: "You need to get out of here! I've been tracking a group of Assembled to figure out where they're coming from, and they're closing on this area, come on!" 02267_ JI-3G3(h): "I'll hold them off! Go on ahead or try to find another way!" 02274_ as-85370 sneak attacks. 02274_ T-07 Excavator destroyed. 02299_ Knocked back. 02300_ Aluminum Leg destroyed. 02304_ as-31985 destroyed. 02305_ Knocked back. 02306_ Reflective Plating destroyed. 02306_ System corrupted by crushing effect (+5). 02308_ Lgt. Ion Engine destroyed. Map ----- +----------------------------------------------------+ | | | | | | | | | | | | | | | | | | | | | | | | | | | | | ?????????????????????????????????????????????????? | | ??????????????????????????#####??????????????????? | | ???????????????????###????# #####??????????????? | | ??????????????????## ????# # #######????????? | | ??????????????????# ???# #????????? | | ??????????????????# #??# #????????? | | ??????????????????# ### #### #????????? | | ???????????????????# #??????####????? | | ???????????????????## aa## ##?????? #??### | | ????????????????????# a#### % ##????? #?## | | ????????????????????## a#??# #?????# #?# | | ?????????????????????## @#??## ##????# ### | | ??????????????????????## #??## #????# ## | | ???????????????????????# #???# ##??## | | ???????????????????????## #???# ##?# | | ????????????????????????# #???# ### | | ???????????????????????? ???# | | ???????????????????????? ???## | | ???????????????????????? ##???## #### #### | | ???????????????????????? ##?????#####??# #??## | | ???????????????????????? #??????????????# #???# | | ???????????????????????? ???????????????# #???# | | ???????????????????????? ???????????????# #???# | | ???????????????????????? ??????????????? ???# ! | | ???????????????????????? ??????????????? ???## ! | | ???????????????????????? ??????????????? ????### | | ???????????????????????? ??????????????? ??????# | | ???????????????????????????????????????? ????? | | ???????????????????????????????????????? ??? | | ???????????????????????????????????????? ? # | | ???????????????????????????????????????? ? | | ???????????????????????????????????????? #? | | ?????????????????????????????????????? #?? | | ????????????????????????????????????? ##??? | | ?????????????????????????????????????? #????? | | ?????????????????????????????????????? ?????? | +----------------------------------------------------+ Best States ------------- Heat Dissipation 42 Coolant Potential 50 Energy Generation 17 Energy Capacity 290 Matter Stores 300 Matter Capacity 300 Sight Range 16 Terrain Scan Density 10 ECM Strength 1 Armor Coverage 150 Resistance: TH 10 Evasion (%) 55 Recoil Reduction 2 Item Schematics ----------------- None Robot Schematics ------------------ None Fabricated ------------ Nothing Alien Tech Used ----------------- None Achievements -------------- Brute Force Party Time Challenges ------------ None Game ------ Seed ControlRestorationPick Manual? 0 Play Time 00:36:57 Cumulative 3.9 hours Start 2024.12.14 @ 17:50:19 End 2024.12.14 @ 18:47:51 Sessions 1 Manual Loads 0 Difficulty Rogue Special Mode None Game No. 5 Rogue 5 Adventurer 0 Explorer 0 Win Type - Total 0 Types 0/0/0/0/0/0/0/0/0 Lore% 8 Gallery% 6 Achievement% 8 Wizard Run 0 Options --------- Layout 0 ASCII 0 Keyboard 1 Movement Vi Keybinds 0 Fullscreen 2 Font 18/Terminus Map View 76x50 Zoom Use 0% Tactical HUD 1 Map Filters NONE Filters NONE Steam 1 RUN: f280a05e-37b1-4fcc-ae63-4385a8384683